bitfinex/quotes_ETHUSD_20250115
["timestamp","ask_amount","ask_price","bid_price","bid_amount"]
[1736971606087,5.19926,3442.5,3442.4,0.24984602]
[1736971606680,1.7444,3442.5,3442.4,0.24984602]
[1736971606883,0.197,3442.5,3442.4,35.27889394]
[1736971607087,1.5474,3442.9,3442.8,2.24984602]
[1736971607284,0.197,3443.0,3442.8,2.24984602]
[1736971607792,1.11,3443.1,3442.9,35.0]
[1736971607992,1.11,3443.1,3443.0,0.24984602]
[1736971608398,2.22,3443.1,3443.0,0.24984602]
[1736971608592,2.22,3443.1,3443.0,35.24984602]
[1736971608901,2.22,3443.1,3443.0,38.24984602]
[1736971609413,2.22,3443.1,3443.0,42.67048602]
[1736971610409,2.22,3443.1,3443.0,39.76604602]
[1736971610619,2.22,3443.1,3443.0,40.24984602]
[1736971610820,3.552,3443.1,3443.0,40.24984602]
[1736971611027,7.79435,3443.1,3443.0,35.24984602]
[1736971611228,7.79435,3443.1,3443.0,35.0]
[1736971611525,2.90486,3442.5,3442.4,8.76]
[1736971611829,3.45503,3442.3,3442.2,0.24984602]
[1736971612195,3.45503,3442.3,3441.9,0.24984602]
[1736971612196,2.90528,3442.0,3441.9,0.24984602]
[1736971612415,5.01528,3442.0,3441.9,35.24984602]
[1736971613014,1.56,3442.0,3441.9,37.24984602]
[1736971613209,1.11,3442.0,3441.9,37.24984602]
[1736971615643,2.22,3442.0,3441.9,43.15521602]
[1736971616514,2.22,3442.0,3441.9,40.24984602]
[1736971618227,3.33,3442.0,3441.9,40.24984602]
[1736971619807,3.33,3442.0,3441.9,43.15521602]
[1736971620326,3.33,3442.0,3441.9,44.81371602]
[1736971620641,4.44,3442.0,3441.9,45.18772627]
[1736971621027,4.44,3442.0,3441.9,145.18772627]
[1736971621323,1e-05,3442.0,3441.9,145.68772627]
[1736971621522,11.1,3443.6,3443.0,2.24984602]
[1736971621726,11.1,3443.6,3443.0,8.15428602]
[1736971622117,11.1,3443.6,3443.0,53.57278602]
[1736971622525,11.1,3443.6,3443.0,44.81278602]
[1736971623226,4.44,3443.1,3443.0,44.81278602]
[1736971623411,4.44,3443.1,3443.0,43.15428602]
[1736971625459,11.1,3443.6,3443.5,5.15386602]
[1736971625613,11.1,3443.6,3443.5,9.81236602]
[1736971625933,1.56,3444.9,3444.8,2.24984602]
[1736971626135,1.56,3445.3,3445.2,2.0]
[1736971626337,1.56,3445.3,3445.2,2.24984602]
[1736971626838,1.56,3445.3,3445.2,37.24984602]
[1736971627229,1.56,3445.6,3445.2,37.24984602]
[1736971627430,1.56,3445.6,3445.5,0.24984602]
[1736971627807,1.56,3445.6,3445.5,35.24984602]
[1736971628009,1.11,3445.6,3445.5,35.28137389]
[1736971628216,1.11,3445.6,3445.5,38.28137389]
[1736971629316,1.56,3447.5,3445.7,8.15200602]
[1736971629537,2.90099,3447.1,3445.7,8.15200602]
[1736971629717,2.90086,3447.3,3445.7,8.18214551]
[1736971630045,0.197,3447.0,3445.7,43.18214551]
[1736971630252,0.197,3447.0,3445.7,47.18214551]
[1736971630447,2.22,3445.8,3445.7,44.27998551]
[1736971630634,2.22,3445.8,3445.7,47.18214551]
[1736971631555,2.22,3445.8,3445.7,37.27998551]
[1736971632127,2.22,3445.8,3445.7,40.27998551]
[1736971632322,2.22,3445.8,3445.7,37.27998551]
[1736971632718,3.88,3445.8,3445.7,37.27998551]
[1736971632912,7.32608,3445.8,3445.7,37.27998551]
[1736971634250,4.424,3445.8,3445.7,37.27998551]
[1736971634629,7.32608,3445.8,3445.7,37.27998551]
[1736971634822,4.424,3445.8,3445.7,37.27998551]
[1736971635020,4.44,3445.8,3445.7,37.27998551]
[1736971636265,9.45208,3445.8,3445.7,35.03013949]
[1736971636837,9.45208,3445.8,3445.7,35.0]
[1736971637634,10.56208,3445.8,3445.7,35.0]
[1736971637870,7.66,3445.8,3445.7,37.0]
[1736971638069,5.55,3445.8,3445.7,37.0]
[1736971638274,5.55,3445.8,3445.7,42.90216]
[1736971638487,5.55,3445.8,3445.7,44.56066]
[1736971640047,6.66,3445.8,3445.7,44.56066]
[1736971640445,6.66,3445.8,3445.7,40.24984602]
[1736971642450,7.77,3445.8,3445.7,40.24984602]
[1736971644985,8.88,3445.8,3445.7,40.24984602]
[1736971645853,8.88,3445.8,3445.7,41.78144602]
[1736971646182,8.88,3445.8,3445.7,44.68360602]
[1736971646785,8.88,3445.8,3445.7,144.68360602]
[1736971647101,0.906649,3450.0,3448.2,2.24984602]
[1736971647403,1.01,3448.3,3448.2,2.24984602]
[1736971647885,1.01,3448.3,3448.2,37.24984602]
[1736971649256,1.56,3448.3,3448.2,37.24984602]
[1736971649790,2.67,3448.3,3448.2,37.24984602]
[1736971650601,2.95403563,3448.3,3448.2,37.24984602]
[1736971650769,4.46603563,3448.3,3448.2,37.24984602]
[1736971652387,5.57603563,3448.3,3448.2,37.24984602]
[1736971652591,5.292,3448.3,3448.2,37.24984602]
[1736971653490,3.78,3448.3,3448.2,37.24984602]
[1736971654887,4.89,3448.3,3448.2,37.24984602]
[1736971656668,4.34,3448.3,3448.2,40.24984602]
[1736971657210,4.89,3448.3,3448.2,40.24984602]
[1736971657382,6.0,3448.3,3448.2,40.24984602]
[1736971659501,6.0,3448.3,3448.2,37.24984602]
[1736971659702,6.45493528,3448.3,3448.2,37.24984602]
[1736971659908,9.13413528,3448.3,3448.2,37.24984602]
[1736971660104,12.03410528,3448.3,3448.2,37.24984602]
[1736971660328,2.90023,3448.0,3447.8,2.0]
[1736971660490,4.33308122,3447.9,3447.8,2.0]
[1736971660699,6.39058934,3447.9,3447.8,2.0]
[1736971660998,6.94058934,3447.9,3447.8,2.0]
[1736971661419,6.94058934,3447.9,3447.8,37.0]
[1736971661778,7.14158934,3447.9,3447.8,37.0]
[1736971662430,8.25158934,3447.9,3447.8,37.0]
[1736971664184,8.25158934,3447.9,3447.8,35.0]
[1736971664540,1.47956327,3447.7,3447.0,2.0]
[1736971664739,5.91815136,3447.1,3447.0,2.0]
[1736971665029,3.45132,3446.7,3446.6,2.0]
[1736971665335,5.09866,3446.3,3446.2,2.0]
[1736971666052,5.09866,3446.3,3446.2,37.0]
[1736971666547,2.197,3446.3,3446.2,37.24984602]
[1736971666746,0.751,3446.3,3446.2,37.24984602]
[1736971666956,0.55,3446.3,3446.2,37.24984602]
[1736971667118,0.5941507,3446.7,3446.6,2.24984602]
[1736971667462,0.201,3446.8,3446.6,2.24984602]
[1736971667650,4.54798,3447.1,3447.0,2.0]
[1736971667814,5.32399261,3447.1,3447.0,2.0]
[1736971668214,3.39366434,3447.1,3447.0,37.0]
[1736971668414,5.32399261,3447.1,3447.0,37.0]
[1736971669132,5.87399261,3447.1,3447.0,35.0]
[1736971669726,5.33699261,3447.1,3447.0,37.0]
[1736971669921,5.33699261,3447.1,3447.0,35.0]
[1736971671122,7.00129261,3447.1,3447.0,35.0]
[1736971671463,8.13967134,3447.1,3447.0,35.0]
[1736971671655,8.13967134,3447.1,3446.4,0.24984602]
[1736971671656,0.55,3447.0,3446.7,2.0]
[1736971671856,3.45124,3446.8,3446.7,2.0]
[1736971672258,4.56124,3446.8,3446.7,2.0]
[1736971672753,4.56124,3446.8,3446.7,37.0]
[1736971673776,4.76224,3446.8,3446.7,37.0]
[1736971673978,4.76224,3446.8,3446.7,37.24984602]
[1736971673979,4.01124,3446.8,3446.7,37.24984602]
[1736971674255,1.11,3446.8,3446.7,37.24984602]
[1736971674662,2.22,3446.8,3446.7,37.0]
[1736971674889,5.67124,3446.8,3446.7,35.0]
[1736971675091,5.67124,3446.8,3446.7,37.0]
[1736971675591,5.67124,3446.8,3446.7,35.0]
[1736971675592,6.825998,3446.8,3446.7,35.0]
[1736971677150,7.935998,3446.8,3446.7,35.0]
[1736971677859,9.600298,3446.8,3446.7,35.0]
[1736971678487,0.55,3446.7,3446.2,2.0]
[1736971678692,3.45166,3446.3,3446.2,2.0]
[1736971679486,3.45166,3446.3,3446.2,37.0]
[1736971679691,4.56166,3446.3,3446.2,37.0]
[1736971680054,1.66,3446.3,3446.2,37.24984602]
[1736971680379,1.11,3446.3,3446.2,37.24984602]
[1736971681000,1.11,3446.3,3446.2,40.24984602]
[1736971681511,1.11,3446.3,3446.2,37.24984602]
[1736971681872,1.66,3446.3,3446.2,37.24984602]
[1736971682113,2.77,3446.3,3446.2,37.24984602]
[1736971682308,7.33596,3446.3,3446.2,37.0]
[1736971682495,8.359702,3446.3,3446.2,35.0]
[1736971684378,7.33596,3446.3,3446.2,35.0]
[1736971684578,8.44596,3446.3,3446.2,35.0]
[1736971687134,2.90216,3445.7,3445.6,2.0]
[1736971687290,3.4525,3445.3,3445.2,2.24984602]
[1736971687609,0.55,3445.3,3445.2,3.32774602]
[1736971688230,0.55,3445.3,3445.2,41.32774602]
[1736971689496,1.66,3445.3,3445.2,41.32774602]
[1736971690820,4.5625,3445.3,3445.2,37.0]
[1736971691027,5.1776,3445.3,3445.2,35.0]
[1736971691888,6.2876,3445.3,3445.2,35.0]
[1736971692236,7.8761,3445.3,3445.2,35.0]
[1736971694393,8.9861,3445.3,3445.2,35.0]
[1736971696949,10.0961,3445.3,3445.2,35.0]
[1736971698674,9.681,3445.3,3445.2,35.0]
[1736971698886,8.931,3445.3,3445.2,37.0]
[1736971699187,4.44,3445.3,3445.2,38.0779]
[1736971699399,5.55,3445.3,3445.2,38.0779]
[1736971700461,5.55,3445.3,3445.2,38.32774602]
[1736971700686,5.55,3445.3,3445.2,37.24984602]
[1736971700884,6.1,3445.3,3445.2,37.24984602]
[1736971701088,9.0025,3445.3,3445.2,35.0]
[1736971701567,10.364092,3445.3,3445.2,35.0]
[1736971701896,11.474092,3445.3,3445.2,35.0]
[1736971702261,12.985192,3445.3,3445.2,35.0]
[1736971703300,0.55,3445.2,3444.6,2.0]
[1736971703499,0.55,3445.2,3443.4,88.43568883]
[1736971703873,0.55,3444.9,3444.3,2.0]
[1736971704083,2.9027,3445.1,3444.3,2.0]
[1736971704300,0.55,3444.8,3444.3,2.0]
[1736971704797,0.55,3444.8,3444.7,35.0]
[1736971706787,1.66,3444.8,3444.7,35.0]
[1736971708418,1.11,3444.8,3444.7,39.90301]
[1736971708819,1.11,3444.8,3444.7,42.90301]
[1736971709324,0.76854,3444.8,3444.7,42.90301]
[1736971709523,6.66,3445.3,3445.2,7.90258]
[1736971710020,3.7575,3445.3,3445.2,7.90258]
[1736971710314,1e-05,3445.3,3445.2,46.90258]
[1736971710619,1e-05,3445.3,3445.2,146.90258]
[1736971712208,1e-05,3445.3,3445.2,157.05258]
[1736971714219,1e-05,3445.3,3445.2,146.90258]
[1736971714445,1.11001,3445.3,3445.2,146.90258]
[1736971714653,1e-05,3445.3,3445.2,146.90258]
[1736971715438,1e-05,3445.3,3445.2,157.30258]
[1736971715632,1e-05,3445.3,3445.2,157.55258]
[1736971715839,3.33,3446.8,3446.2,4.90174]
[1736971716015,3.33,3446.8,3446.2,7.90174]
[1736971716648,3.33,3446.8,3446.2,42.90174]
[1736971716851,5.55,3446.3,3446.2,42.90174]
[1736971719040,5.55,3446.3,3446.2,46.90174]
[1736971719211,6.66,3446.3,3446.2,46.90174]
[1736971719848,6.66,3446.3,3446.2,47.49050758]
[1736971720451,6.66,3446.3,3446.2,44.90174]
[1736971720669,6.66,3446.3,3446.2,46.90174]
[1736971720958,6.66,3446.3,3446.2,40.0]
[1736971720959,7.21,3446.3,3446.2,40.0]
[1736971721547,8.32,3446.3,3446.2,37.0]
[1736971721917,8.32,3446.3,3446.2,40.0]
[1736971722118,7.77,3446.3,3446.2,42.90174]
[1736971723952,8.88,3446.3,3446.2,42.90174]
[1736971725834,8.88,3446.3,3446.2,46.90174]
[1736971726036,7.42917,3446.3,3446.2,46.90174]
[1736971726348,8.53917,3446.3,3446.2,46.90174]
[1736971726942,7.08834,3446.3,3446.2,46.90174]
[1736971727320,2.73585,3446.3,3446.2,46.90174]
[1736971727653,6.48e-06,3446.3,3446.2,46.90174]
[1736971727859,3.33,3446.8,3446.7,4.90132]
[1736971728070,3.33,3446.8,3446.7,7.90132]
[1736971728355,1.11,3447.1,3447.0,2.90107]
[1736971728659,1.11,3447.1,3447.0,40.90107]
[1736971728953,2.22,3447.1,3447.0,40.90107]
[1736971730342,2.22,3447.1,3447.0,44.90107]
[1736971731267,0.76951,3447.1,3447.0,44.90107]
[1736971731452,1.11,3447.7,3447.6,7.90056]
[1736971731653,1.66,3447.7,3447.6,5.0]
[1736971732170,1.66,3447.7,3447.6,42.90056]
[1736971732667,1.11,3447.7,3447.6,42.90056]
[1736971732872,0.02,3449.0,3448.9,4.89947]
[1736971733365,0.02,3449.0,3448.9,107.92845446]
[1736971733565,0.02,3449.0,3448.9,142.89947]
[1736971734071,1.13,3449.0,3448.9,142.89947]
[1736971734639,1.68,3449.0,3448.9,142.89947]
[1736971734853,1.68,3449.0,3448.9,40.0]
[1736971735266,1.68,3449.0,3448.9,37.0]
[1736971735795,1.13,3449.0,3448.9,37.0]
[1736971736084,1.13,3449.0,3448.9,39.89947]
[1736971736433,2.79,3449.0,3448.9,39.89947]
[1736971736633,2.79,3449.0,3448.9,42.89947]
[1736971736833,2.24,3449.0,3448.9,42.89947]
[1736971737233,2.79,3449.0,3448.9,42.89947]
[1736971738065,2.24,3449.0,3448.9,42.89947]
[1736971738570,2.79,3449.0,3448.9,40.0]
[1736971738743,2.79,3449.0,3448.9,37.0]
[1736971738944,3.9,3449.0,3448.9,37.0]
[1736971741453,5.01,3449.0,3448.9,37.0]
[1736971741988,4.46,3449.0,3448.9,39.89947]
[1736971742885,4.46,3449.0,3448.9,42.89947]
[1736971743855,5.57,3449.0,3448.9,42.89947]
[1736971744686,6.12,3449.0,3448.9,37.0]
[1736971745673,6.321,3449.0,3448.9,37.0]
[1736971746376,7.431,3449.0,3448.9,37.0]
[1736971747278,7.23,3449.0,3448.9,39.89947]
[1736971749144,7.79,3449.0,3448.9,39.89947]
[1736971749767,7.79,3449.0,3448.9,42.89947]
[1736971751360,0.00385653,3449.6,3449.5,4.89897]
[1736971751680,0.00385653,3449.6,3449.5,104.89897]
[1736971752052,0.00385653,3449.6,3449.5,139.89897]
[1736971752478,0.00385653,3449.6,3449.5,37.0]
[1736971752856,2.06615653,3449.6,3449.5,37.0]
[1736971753203,0.55385653,3449.6,3449.5,37.0]
[1736971753563,0.00385653,3449.6,3449.5,37.0]
[1736971754265,1.11385653,3449.6,3449.5,37.0]
[1736971754471,1.11385653,3449.6,3449.5,39.89897]
[1736971755244,1.11385653,3449.6,3449.5,42.89897]
[1736971756885,2.22385653,3449.6,3449.5,42.89897]
[1736971757549,2.22227715,3449.6,3449.5,42.89897]
[1736971759406,3.33227715,3449.6,3449.5,42.89897]
[1736971761264,3.88227715,3449.6,3449.5,42.89897]
[1736971761695,4.99227715,3449.6,3449.5,42.89897]
[1736971762398,4.44227715,3449.6,3449.5,42.89897]
[1736971763297,0.656649,3450.0,3449.9,7.89863]
[1736971763624,2.1973,3450.6,3450.5,2.0]
[1736971764129,2.1973,3450.6,3450.5,37.0]
[1736971764130,3.3073,3450.6,3450.5,37.0]
[1736971764310,1.11,3450.6,3450.5,37.0]
[1736971764891,1.11,3450.6,3450.5,39.89813]
[1736971765442,1.11,3450.6,3450.5,42.89813]
[1736971765618,0.4995,3451.0,3450.9,2.0]
[1736971765809,0.01449,3451.8,3451.5,2.0]
[1736971765991,1.6361,3451.7,3451.5,2.0]
[1736971766196,3.07923463,3451.7,3451.6,35.0]
[1736971766534,1.6361,3451.5,3450.8,2.0]
[1736971766701,2.1861,3451.2,3450.8,2.0]
[1736971766917,0.55,3451.0,3450.5,0.25935821]
[1736971767103,0.55,3450.8,3450.5,0.25935821]
[1736971767317,0.55,3450.8,3450.4,2.0]
[1736971767506,0.55,3450.8,3450.7,35.0]
[1736971768723,0.55,3450.8,3450.7,35.25920846]
[1736971768930,1.66,3450.8,3450.7,37.25920846]
[1736971769291,1.11,3450.8,3450.7,37.25920846]
[1736971770038,1.11,3450.8,3450.7,40.25920846]
[1736971770242,1.66,3450.8,3450.7,37.25920846]
[1736971771431,4.4061,3450.8,3450.7,37.25920846]
[1736971772984,2.77,3450.8,3450.7,37.25920846]
[1736971773490,2.77,3450.8,3450.7,41.86820846]
[1736971773491,2.22,3450.8,3450.7,41.86820846]
[1736971773647,3.33,3450.8,3450.7,44.76616846]
[1736971774137,3.88,3450.8,3450.7,40.25920846]
[1736971774336,3.88,3450.8,3450.7,140.25920846]
[1736971774539,3.88,3450.8,3450.7,40.25920846]
[1736971774766,3.88,3450.8,3450.7,37.25920846]
[1736971776134,4.99,3450.8,3450.7,37.25920846]
[1736971777750,4.44,3450.8,3450.7,38.80030846]
[1736971778337,4.99,3450.8,3450.7,141.69826846]
[1736971778478,4.10106,3450.8,3450.7,144.69826846]
[1736971779141,1.20318,3450.8,3450.7,147.75426846]
[1736971779346,1.12449,3451.8,3450.7,147.75426846]
[1736971779347,1.12449,3451.8,3451.7,7.89712]
[1736971779590,1.12449,3451.8,3451.7,2.0]
[1736971779789,1.12449,3451.8,3451.7,4.89712]
[1736971779973,1.12449,3451.8,3451.7,37.0]
[1736971780180,1.67449,3451.8,3451.7,37.0]
[1736971780759,1.12449,3451.8,3451.7,39.89712]
[1736971781067,2.23449,3451.8,3451.7,40.15632846]
[1736971781378,2.78449,3451.8,3451.7,37.25920846]
[1736971781871,2.78449,3451.8,3451.7,2.25920846]
[1736971782776,2.78449,3451.8,3451.7,37.25920846]
[1736971782973,2.78449,3451.8,3451.7,35.25920846]
[1736971783190,4.41179,3451.8,3451.7,35.25920846]
[1736971783501,5.52179,3451.8,3451.7,37.25920846]
[1736971783660,5.52179,3451.8,3451.7,35.25920846]
[1736971783864,5.52179,3451.8,3451.7,37.25920846]
[1736971785868,6.63179,3451.8,3451.7,37.25920846]
[1736971787268,6.63179,3451.8,3451.7,35.25920846]
[1736971787804,6.63179,3451.8,3451.7,37.25920846]
[1736971787989,6.63179,3451.8,3451.7,35.25920846]
[1736971788197,7.74179,3451.8,3451.7,37.25920846]
[1736971788705,8.53300463,3451.8,3451.7,35.25920846]
[1736971788883,11.43003463,3451.8,3451.7,35.25920846]
[1736971789712,8.53300463,3451.8,3451.7,35.25920846]
[1736971789927,7.74179,3451.8,3451.7,35.25920846]
[1736971790128,10.63882,3451.8,3451.7,35.25920846]
[1736971790316,10.63882,3451.8,3451.7,35.0]
[1736971790833,11.74882,3451.8,3451.7,35.0]
[1736971791127,8.85179,3451.8,3451.7,35.0]
[1736971791435,6.67449,3451.8,3451.7,37.0]
[1736971791635,7.22449,3451.8,3451.7,37.0]
[1736971792119,6.67449,3451.8,3451.7,39.89712]
[1736971792278,7.22449,3451.8,3451.7,39.89712]
[1736971792679,6.67449,3451.8,3451.7,39.89712]
[1736971793102,7.78449,3451.8,3451.7,40.15629138]
[1736971794049,8.33449,3451.8,3451.7,40.15629138]
[1736971795547,9.44449,3451.8,3451.7,40.15629138]
[1736971795748,9.44449,3451.8,3451.7,37.25917138]
[1736971798054,10.55449,3451.8,3451.7,37.25917138]
[1736971798252,10.55449,3451.8,3451.7,35.25917138]
[1736971798253,15.03002,3451.8,3451.7,35.25917138]
[1736971798425,12.13299,3451.8,3451.7,35.25917138]
[1736971798836,15.03002,3451.8,3451.7,35.25917138]
[1736971800324,16.14002,3451.8,3451.7,35.25917138]
[1736971801880,16.14002,3451.8,3451.7,35.0]
[1736971802188,13.24299,3451.8,3451.7,35.0]
[1736971802367,14.58432463,3451.8,3451.7,35.0]
[1736971802677,14.58432463,3451.8,3450.4,2.89817]
[1736971802678,0.55,3451.5,3450.8,2.0]
[1736971802878,0.55,3451.3,3450.4,2.0]
[1736971803078,0.55,3450.9,3450.4,2.0]
[1736971803452,0.55,3450.8,3450.4,2.0]
[1736971803779,0.55,3450.6,3450.4,2.0]
[1736971803946,0.55,3450.6,3450.5,35.0]
[1736971805270,1.66,3450.6,3450.5,35.2596695]
[1736971806602,1.66,3450.6,3450.5,35.0]
[1736971806958,5.191378,3450.6,3450.5,35.25947761]
[1736971807582,6.301378,3450.6,3450.5,35.25947761]
[1736971808616,7.879878,3450.6,3450.5,35.25947761]
[1736971808821,7.879878,3450.6,3450.5,35.0]
[1736971810204,8.989878,3450.6,3450.5,35.0]
[1736971812604,10.099878,3450.6,3450.5,35.0]
[1736971813333,10.68667647,3450.6,3450.5,35.0]
[1736971814235,0.55,3449.6,3449.1,2.0]
[1736971814414,0.747,3449.6,3449.1,2.0]
[1736971815015,1.857,3449.6,3449.1,2.25916925]
[1736971815213,1.857,3449.6,3449.5,35.0]
[1736971816041,1.857,3449.6,3449.5,35.25916925]
[1736971817040,4.75588,3449.6,3449.5,35.25916925]
[1736971817245,6.789185,3449.6,3449.5,35.0]
[1736971819334,2.967,3449.6,3449.5,35.0]
[1736971819712,4.077,3449.6,3449.5,35.0]
[1736971820310,6.97588,3449.6,3449.5,35.0]
[1736971821411,4.077,3449.6,3449.5,35.0]
[1736971821645,6.97588,3449.6,3449.5,35.0]
[1736971821917,4.077,3449.6,3449.5,35.0]
[1736971822135,5.187,3449.6,3449.5,35.0]
[1736971822712,4.99,3449.6,3449.5,35.0]
[1736971822911,5.187,3449.6,3449.5,35.0]
[1736971824538,6.297,3449.6,3449.5,35.0]
[1736971826651,6.1,3449.6,3449.5,35.0]
[1736971826947,5.55,3449.6,3449.5,38.643]
[1736971827245,6.66,3449.6,3449.5,45.05067]
[1736971827821,6.66,3449.6,3449.5,40.40767]
[1736971828027,6.66,3449.6,3449.5,37.5087]
[1736971828222,6.66,3449.6,3449.5,37.76810772]
[1736971829026,0.86224,3449.6,3449.5,45.31007772]
[1736971829225,4.44,3450.6,3450.5,4.54113]
[1736971829448,4.44,3450.6,3450.5,7.54113]
[1736971829847,4.44,3450.6,3450.5,142.54113]
[1736971830621,4.44,3450.6,3450.5,142.80053772]
[1736971832054,4.44,3450.6,3450.5,143.3856031]
[1736971832241,5.55,3450.6,3450.5,143.43119128]
[1736971833754,5.55,3450.6,3450.5,43.43119128]
[1736971834860,6.66,3450.6,3450.5,43.43119128]
[1736971837562,7.77,3450.6,3450.5,43.43119128]
[1736971839958,8.88,3450.6,3450.5,43.43119128]
[1736971840543,8.88,3450.6,3450.5,40.2031259]
[1736971840740,9.43,3450.6,3450.5,35.3049959]
[1736971840941,10.53612,3450.6,3450.5,35.3049959]
[1736971841865,12.16732,3450.6,3450.5,35.3049959]
[1736971842458,13.27732,3450.6,3450.5,35.3049959]
[1736971842770,13.47232,3450.6,3450.5,35.3049959]
[1736971843482,16.37036,3450.6,3450.5,35.04558818]
[1736971844841,17.48036,3450.6,3450.5,35.04558818]
[1736971847345,18.59036,3450.6,3450.5,35.04558818]
[1736971847975,18.39536,3450.6,3450.5,35.04558818]
[1736971848179,13.8412,3450.6,3450.5,35.04558818]
[1736971848381,12.21,3450.6,3450.5,39.94371818]
[1736971848583,12.21,3450.6,3450.5,37.04558818]
[1736971849078,12.21,3450.6,3450.5,37.30485471]
[1736971849300,12.21,3450.6,3450.5,35.30485471]
[1736971849845,13.87,3450.6,3450.5,35.30485471]
[1736971850453,14.47260048,3450.6,3450.5,35.30485471]
[1736971852412,15.58260048,3450.6,3450.5,35.30485471]
[1736971852710,17.19840048,3450.6,3450.5,35.29301606]
[1736971854105,17.39340048,3450.6,3450.5,35.29301606]
[1736971855388,18.50340048,3450.6,3450.5,35.29301606]
[1736971856453,21.40144048,3450.6,3450.5,35.29301606]
[1736971856853,18.50340048,3450.6,3450.5,35.29301606]
[1736971857340,21.40144048,3450.6,3450.5,35.29301606]
[1736971857653,21.40144048,3450.6,3450.5,35.25926653]
[1736971857870,22.51144048,3450.6,3450.5,35.25926653]
[1736971858072,22.51144048,3450.6,3450.5,35.29055507]
[1736971858774,22.51144048,3450.6,3450.5,35.03128854]
[1736971860199,23.62144048,3450.6,3450.5,35.03128854]
[1736971860571,23.62144048,3450.6,3450.5,35.0]
[1736971860777,23.62144048,3450.6,3450.5,35.03040328]
[1736971862099,20.1208,3450.6,3450.5,35.03040328]
[1736971862293,17.76,3450.6,3450.5,35.03040328]
[1736971862769,18.87,3450.6,3450.5,35.03040328]
[1736971863812,19.42,3450.6,3450.5,35.03040328]
[1736971864196,18.87,3450.6,3450.5,39.92853328]
[1736971864394,18.87,3450.6,3450.5,41.47663328]
[1736971865232,19.98,3450.6,3450.5,41.47663328]
[1736971866704,19.98,3450.6,3450.5,38.57850328]
[1736971867604,21.09,3450.6,3450.5,38.57850328]
[1736971868939,21.09,3450.6,3450.5,35.03040328]
[1736971868940,21.64,3450.6,3450.5,35.03040328]
[1736971869140,24.279037,3450.6,3450.5,35.03040328]
[1736971869299,27.177077,3450.6,3450.5,35.03040328]
[1736971870119,29.944577,3450.6,3450.5,35.03040328]
[1736971870950,30.51377429,3450.6,3450.5,35.03040328]
[1736971872354,0.25,3450.5,3449.5,0.5087]
[1736971872560,1.6575,3449.8,3449.5,0.5087]
[1736971872760,0.745,3449.7,3449.5,0.5087]
[1736971873358,0.745,3449.7,3449.6,35.0]
[1736971873359,0.695,3449.7,3449.6,35.0]
[1736971873944,3.5938,3449.7,3449.6,35.0]
[1736971874816,4.7038,3449.7,3449.6,35.0]
[1736971875017,5.654792,3449.7,3449.6,35.0]
[1736971877115,7.312292,3449.7,3449.6,35.0]
[1736971877310,8.422292,3449.7,3449.6,35.0]
[1736971877814,7.922292,3449.7,3449.6,35.0]
[1736971878211,8.472292,3449.7,3449.6,35.0]
[1736971878415,8.722292,3449.7,3449.6,35.0]
[1736971879673,9.832292,3449.7,3449.6,35.0]
[1736971880317,9.832292,3449.7,3449.6,34.0679]
[1736971880557,4.99858,3449.6,3449.5,0.07571307]
[1736971880721,6.35959498,3449.6,3449.5,0.07571307]
[1736971881457,6.35959498,3449.6,3449.5,35.07571307]
[1736971881754,6.35959498,3449.6,3449.5,35.00000001]
[1736971881957,6.55459498,3449.6,3449.5,35.00000001]
[1736971882260,1.305,3449.6,3449.5,35.00000001]
[1736971882456,1.855,3449.6,3449.5,35.00000001]
[1736971882661,4.75388,3449.6,3449.5,35.00000001]
[1736971882956,9.80358,3449.6,3449.5,34.50322522]
[1736971883161,2.89956,3448.8,3448.2,1.5635]
[1736971883359,0.55,3448.6,3448.2,1.5635]
[1736971883659,0.55,3448.4,3447.9,3.5635]
[1736971884046,0.55,3448.4,3448.3,35.0]
[1736971884238,0.195,3448.5,3448.3,35.0]
[1736971884558,0.195,3448.5,3448.1,4.90008]
[1736971884723,1.305,3448.5,3448.1,4.90008]
[1736971885062,1.855,3448.5,3448.4,35.0]
[1736971885442,1.66,3448.5,3448.4,35.0]
[1736971886019,5.035276,3448.5,3448.4,35.0]
[1736971887059,5.285276,3448.5,3448.4,35.0]
[1736971887226,6.917476,3448.5,3448.4,35.0]
[1736971887426,9.917476,3448.5,3448.4,35.0]
[1736971887973,2.90055,3447.7,3447.0,1.6497]
[1736971888181,0.745,3447.6,3447.0,1.6497]
[1736971888682,0.55,3447.5,3447.0,1.6497]
[1736971888879,0.55,3447.5,3447.4,35.0]
[1736971890187,1.66,3447.5,3447.4,35.0]
[1736971891685,1.11,3447.5,3447.4,36.6497]
[1736971892191,1.11,3447.5,3447.4,44.55043]
[1736971892681,2.22,3447.5,3447.4,44.55043]
[1736971892885,2.22,3447.5,3447.4,42.55043]
[1736971893049,2.22,3447.5,3447.4,36.6497]
[1736971893251,2.77,3447.5,3447.4,36.6497]
[1736971893455,2.77,3447.5,3447.4,35.0]
[1736971894959,5.3915,3447.5,3447.4,35.0]
[1736971895138,3.88,3447.5,3447.4,35.0]